[Event "Budapest Spring Festival 2019"]
[Site "Budapest"]
[Date "2019.04.14"]
[Round "6.27"]
[White "Nomin-Erdene, Davaademberel"]
[Black "Polyik, Peter"]
[Result "1-0"]
[ECO "B48"]
[WhiteElo "2399"]
[BlackElo "2303"]
[Annotator "NA"]
[PlyCount "53"]
[EventDate "2019.04.09"]
[EventType "swiss"]
[EventCountry "HUN"]
[SourceTitle "playchess.com"]
[Source "ChessBase"]
[SourceQuality "1"]
[TimeControl "40/5400+30:1800+30"]

1. e4 {[%emt 0:00:04]} c5 {[%emt 0:00:06]} 2. Nf3 {[%emt 0:00:05]} e6 {[%emt 0:00:05]} 3. d4 {[%emt 0:00:06]} cxd4 {[%emt 0:00:07]} 4. Nxd4 {[%emt 0:00:04]} Nc6 {[%emt 0:00:20]} 5. Nc3 {[%emt 0:00:07]} Qc7 {[%emt 0:00:12]} 6. Be3 {[%emt 0:00:07]} a6 {[%emt 0:00:32]} 7. Qf3 {[%emt 0:00:09]} d6 {[%emt 0:01:20]} 8. Qg3 {[%emt 0:05:16]} Bd7 {[%emt 0:01:14]} 9. O-O-O {[%emt 0:15:00]} Nf6 {[%emt 0:01:43]} 10. f4 {[%emt 0:05:52]} b5 {[%emt 0:00:26]} 11. Bd3 {[%emt 0:00:21]} Be7 {[%emt 0:03:03]} 12. Rhe1 {[%emt 0:15:34]} b4 {[%emt 0:22:11]} 13. Nce2 {[%emt 0:00:30]} O-O {[%emt 0:09:05]} 14. Kb1 {[%emt 0:02:07]} Rfc8 {[%emt 0:07:54]} 15. Nxc6 {[%emt 0:08:17]} Bxc6 {[%emt 0:02:31]} 16. Bd4 {[%emt 0:00:09]} a5 {[%emt 0:11:52]} 17. e5 {[%emt 0:09:26]} dxe5 {[%emt 0:00:31]} 18. Bxe5 {[%emt 0:01:17]} Qb7 {[%emt 0:00:24]} 19. Nd4 {[%emt 0:00:42]} Bd5 {[%emt 0:01:43]} 20. f5 {[%emt 0:06:06]} a4 {[%emt 0:03:47]} 21. fxe6 {[%emt 0:00:17]} fxe6 {[%emt 0:11:23]} 22. Rf1 {[%emt 0:04:20]} Kh8 {[%emt 0:03:21]} 23. Rf2 {[%emt 0:04:48]} Bxa2+ {[%emt 0:02:05]} 24. Kxa2 {[%emt 0:01:02]} b3+ {[%emt 0:00:52]} 25. Kb1 {[%emt 0:01:15]} a3 {[%emt 0:06:03]} 26. Nxe6 {[%emt 0:02:18]} Bf8 {[%emt 0:01:44]} 27. Rxf6 {[%emt 0:01:42]} 1-0

[Event "Budapest Spring Festival 2019"]
[Site "Budapest"]
[Date "2019.04.14"]
[Round "6.28"]
[White "Nguyen, Van Thanh"]
[Black "Song, Julien"]
[Result "1/2-1/2"]
[ECO "E11"]
[WhiteElo "2391"]
[BlackElo "2310"]
[Annotator "NA"]
[PlyCount "23"]
[EventDate "2019.04.09"]
[EventType "swiss"]
[EventCountry "HUN"]
[SourceTitle "playchess.com"]
[Source "ChessBase"]
[SourceQuality "1"]
[TimeControl "40/5400+30:1800+30"]

1. d4 {[%emt 0:00:04]} Nf6 {[%emt 0:01:13]} 2. Nf3 {[%emt 0:00:13]} e6 {[%emt 0:00:52]} 3. c4 {[%emt 0:00:17]} Bb4+ {[%emt 0:00:11]} 4. Nbd2 {[%emt 0:00:14]} O-O {[%emt 0:00:13]} 5. a3 {[%emt 0:00:09]} Be7 {[%emt 0:00:13]} 6. g3 {[%emt 0:01:49]} d5 {[%emt 0:07:47]} 7. Bg2 {[%emt 0:00:21]} b6 {[%emt 0:00:17]} 8. O-O {[%emt 0:00:43]} Bb7 {[%emt 0:00:35]} 9. Ne5 {[%emt 0:00:45]} Nbd7 {[%emt 0:05:53]} 10. Nxd7 {[%emt 0:00:47]} Qxd7 {[%emt 0:00:58]} 11. Qc2 {[%emt 0:01:03]} c5 {[%emt 0:14:29]} 12. dxc5 {[%emt 0:00:09]} 1/2-1/2

[Event "Budapest Spring Festival 2019"]
[Site "Budapest"]
[Date "2019.04.14"]
[Round "6.30"]
[White "Bayramov, Zaur"]
[Black "Ravi, Teja S."]
[Result "1/2-1/2"]
[ECO "A12"]
[WhiteElo "2301"]
[BlackElo "2383"]
[Annotator "NA"]
[PlyCount "22"]
[EventDate "2019.04.09"]
[EventType "swiss"]
[EventCountry "HUN"]
[SourceTitle "playchess.com"]
[Source "ChessBase"]
[SourceQuality "1"]
[TimeControl "40/5400+30:1800+30"]

1. c4 {[%emt 0:00:02]} c6 {[%emt 0:03:11]} 2. Nf3 {[%emt 0:00:14]} d5 {[%emt 0:00:05]} 3. b3 {[%emt 0:00:09]} Bf5 {[%emt 0:02:12]} 4. e3 {[%emt 0:01:43]} e6 {[%emt 0:00:06]} 5. Bb2 {[%emt 0:00:41]} Nd7 {[%emt 0:00:26]} 6. Nc3 {[%emt 0:01:13]} Ngf6 {[%emt 0:01:52]} 7. d4 {[%emt 0:02:08]} Bd6 {[%emt 0:05:55]} 8. Bd3 {[%emt 0:02:21]} Bg6 {[%emt 0:02:45]} 9. O-O {[%emt 0:01:20]} Qe7 {[%emt 0:08:22]} 10. Bxg6 {[%emt 0:13:15]} hxg6 {[%emt 0:01:21]} 11. h3 {[%emt 0:00:53]} Ne4 {[%emt 0:06:27]} 1/2-1/2

[Event "Budapest Spring Festival 2019"]
[Site "Budapest"]
[Date "2019.04.14"]
[Round "6.36"]
[White "Turzo, Attila"]
[Black "Szeberenyi, Adam"]
[Result "1-0"]
[ECO "D11"]
[WhiteElo "2296"]
[BlackElo "2392"]
[Annotator "NA"]
[PlyCount "39"]
[EventDate "2019.04.09"]
[EventType "swiss"]
[EventCountry "HUN"]
[SourceTitle "playchess.com"]
[Source "ChessBase"]
[SourceQuality "1"]
[TimeControl "40/5400+30:1800+30"]

1. d4 {[%emt 0:00:45]} d5 {[%emt 0:00:04]} 2. c4 {[%emt 0:00:18]} c6 {[%emt 0:04:59]} 3. Nf3 {[%emt 0:02:09]} dxc4 {[%emt 0:03:49]} 4. e3 {[%emt 0:00:28]} Be6 {[%emt 0:00:07]} 5. Qc2 {[%emt 0:10:03]} Nf6 {[%emt 0:10:20]} 6. Nbd2 {[%emt 0:05:35]} b5 {[%emt 0:00:21]} 7. b3 {[%emt 0:00:18]} cxb3 {[%emt 0:04:58]} 8. axb3 {[%emt 0:00:44]} g6 {[%emt 0:11:22]} 9. Be2 {[%emt 0:18:16]} Bg7 {[%emt 0:09:28]} 10. O-O {[%emt 0:06:03]} O-O {[%emt 0:07:19]} 11. Ba3 {[%emt 0:02:14]} a5 {[%emt 0:06:12]} 12. Ne5 {[%emt 0:02:25]} Ra6 {[%emt 0:07:12]} 13. Bf3 {[%emt 0:01:21]} Bd5 {[%emt 0:06:28]} 14. e4 {[%emt 0:02:41]} Be6 {[%emt 0:00:02]} 15. Bb2 {[%emt 0:00:12]} Nbd7 {[%emt 0:09:51]} 16. Nxc6 {[%emt 0:04:58]} Qb6 {[%emt 0:00:17]} 17. d5 {[%emt 0:03:45]} Bg4 {[%emt 0:00:14]} 18. e5 {[%emt 0:02:05]} Nxd5 {[%emt 0:02:51]} 19. Bxd5 {[%emt 0:01:25]} e6 {[%emt 0:00:28]} 20. Bd4 {[%emt 0:00:37]} 1-0

[Event "Budapest Spring Festival 2019"]
[Site "Budapest"]
[Date "2019.04.14"]
[Round "6.37"]
[White "Bronstein, Or"]
[Black "Kathmale, Sameer"]
[Result "1-0"]
[ECO "E73"]
[WhiteElo "2387"]
[BlackElo "2279"]
[Annotator "NA"]
[PlyCount "77"]
[EventDate "2019.04.09"]
[EventType "swiss"]
[EventCountry "HUN"]
[SourceTitle "playchess.com"]
[Source "ChessBase"]
[SourceQuality "1"]
[TimeControl "40/5400+30:1800+30"]

1. d4 {[%emt 0:00:47]} Nf6 {[%emt 0:06:55]} 2. c4 {[%emt 0:00:08]} g6 {[%emt 0:00:15]} 3. Nc3 {[%emt 0:00:04]} Bg7 {[%emt 0:00:05]} 4. e4 {[%emt 0:00:04]} d6 {[%emt 0:00:03]} 5. Be2 {[%emt 0:00:04]} O-O {[%emt 0:00:06]} 6. Be3 {[%emt 0:00:11]} Na6 {[%emt 0:00:41]} 7. Nf3 {[%emt 0:00:07]} e5 {[%emt 0:05:05]} 8. O-O {[%emt 0:00:17]} Ng4 {[%emt 0:01:24]} 9. Bg5 {[%emt 0:00:48]} Qe8 {[%emt 0:00:10]} 10. dxe5 {[%emt 0:00:30]} dxe5 {[%emt 0:10:19]} 11. h3 {[%emt 0:00:05]} Nf6 {[%emt 0:00:30]} 12. Be3 {[%emt 0:11:52]} b6 {[%emt 0:09:52]} 13. a3 {[%emt 0:02:29]} Bb7 {[%emt 0:05:23]} 14. Qc2 {[%emt 0:00:24]} Nh5 {[%emt 0:02:30]} 15. b4 {[%emt 0:05:15]} c5 {[%emt 0:06:27]} 16. Rab1 {[%emt 0:15:41]} Rc8 {[%emt 0:07:25]} 17. Nd5 {[%emt 0:10:36]} cxb4 {[%emt 0:02:11]} 18. axb4 {[%emt 0:01:06]} f5 {[%emt 0:03:39]} 19. Qa2 {[%emt 0:01:25]} fxe4 {[%emt 0:11:06]} 20. Ng5 {[%emt 0:00:38]} Nf4 {[%emt 0:01:09]} 21. Bxf4 {[%emt 0:00:33]} exf4 {[%emt 0:01:18]} 22. c5 {[%emt 0:00:08]} Kh8 {[%emt 0:02:33]} 23. Bxa6 {[%emt 0:00:35]} Bxa6 {[%emt 0:04:50]} 24. Qxa6 {[%emt 0:00:15]} h6 {[%emt 0:04:25]} 25. Qxa7 {[%emt 0:10:50]} hxg5 {[%emt 0:01:17]} 26. cxb6 {[%emt 0:00:11]} Bd4 {[%emt 0:01:39]} 27. Rbd1 {[%emt 0:03:11]} Rc4 {[%emt 0:04:50]} 28. Qa6 {[%emt 0:01:29]} Qc6 {[%emt 0:02:08]} 29. Ne7 {[%emt 0:00:16]} Qe6 30. Nxg6+ {[%emt 0:00:38]} Qxg6 {[%emt 0:00:33]} 31. Qxc4 {[%emt 0:00:08]} Bxb6 {[%emt 0:00:07]} 32. Qd5 {[%emt 0:02:32]} e3 {[%emt 0:02:41]} 33. fxe3 {[%emt 0:01:01]} g4 {[%emt 0:01:34]} 34. Qe5+ {[%emt 0:00:15]} Qg7 {[%emt 0:00:46]} 35. Qh5+ {[%emt 0:00:57]} Qh7 {[%emt 0:00:23]} 36. Qxg4 {[%emt 0:01:16]} Bxe3+ {[%emt 0:01:52]} 37. Kh1 {[%emt 0:00:07]} Rg8 {[%emt 0:00:07]} 38. Rd7 {[%emt 0:02:09]} Qh6 {[%emt 0:00:38]} 39. Qf5 {[%emt 0:00:14]} 1-0

[Event "Budapest Spring Festival 2019"]
[Site "Budapest"]
[Date "2019.04.14"]
[Round "6.38"]
[White "Hando, Vilmos"]
[Black "Havanecz, Bianka"]
[Result "0-1"]
[ECO "D37"]
[WhiteElo "2382"]
[BlackElo "2265"]
[Annotator "ChessBase"]
[PlyCount "120"]
[EventDate "2019.04.09"]
[EventType "swiss"]
[EventCountry "HUN"]
[SourceTitle "playchess.com"]
[Source "ChessBase"]
[SourceQuality "1"]
[TimeControl "40/5400+30:1800+30"]

1. c4 {[%emt 0:00:03]} Nf6 {[%emt 0:00:06]} 2. d4 {[%emt 0:00:12]} e6 {[%emt 0:00:07]} 3. Nf3 {[%emt 0:00:05]} d5 {[%emt 0:00:08]} 4. Nc3 {[%emt 0:00:23]} dxc4 {[%emt 0:00:07]} 5. e3 {[%emt 0:01:11]} a6 {[%emt 0:00:13]} 6. a4 {[%emt 0:00:24]} c5 {[%emt 0:00:47]} 7. Bxc4 {[%emt 0:00:07]} Nc6 {[%emt 0:00:15]} 8. O-O {[%emt 0:00:21]} Be7 {[%emt 0:00:38]} 9. Qe2 {[%emt 0:02:12]} cxd4 {[%emt 0:00:07]} 10. Rd1 {[%emt 0:01:03]} O-O {[%emt 0:00:08]} 11. exd4 {[%emt 0:00:34]} Nb4 {[%emt 0:00:06]} 12. Ne5 {[%emt 0:12:28]} b6 {[%emt 0:00:09]} 13. Bf4 {[%emt 0:17:15]} Nfd5 {[%emt 0:02:35]} 14. Bg3 {[%emt 0:05:26]} Bb7 {[%emt 0:00:37]} 15. f3 {[%emt 0:03:30]} Rc8 {[%emt 0:06:59]} 16. Be1 {[%emt 0:22:41]} Nf4 {[%emt 0:01:11]} 17. Qf1 {[%emt 0:03:09]} Nc2 {[%emt 0:01:01]} 18. Bf2 {[%emt 0:03:15]} Nxa1 {[%emt 0:02:17]} 19. Rxa1 {[%emt 0:00:02]} Bb4 {[%emt 0:05:03]} 20. Ne4 {[%emt 0:02:09]} f6 {[%emt 0:06:12]} 21. Nd3 {[%emt 0:01:22]} Rxc4 {[%emt 0:03:20]} 22. Nxf4 {[%emt 0:00:06]} Qc8 {[%emt 0:01:37]} 23. b3 {[%emt 0:04:10]} Rc2 {[%emt 0:00:30]} 24. Nd3 {[%emt 0:04:01]} Be7 {[%emt 0:02:38]} 25. a5 {[%emt 0:01:36]} f5 {[%emt 0:04:52]} 26. Ng3 {[%emt 0:00:05]} bxa5 {[%emt 0:02:22]} 27. Nc5 {[%emt 0:00:54]} Bxc5 {[%emt 0:00:32]} 28. dxc5 {[%emt 0:00:06]} Rd8 {[%emt 0:00:13]} 29. Rd1 {[%emt 0:01:28]} Rdd2 {[%emt 0:04:44]} 30. Rxd2 {[%emt 0:00:24]} Rxd2 {[%emt 0:00:02]} 31. Be3 {[%emt 0:01:42]} Rd5 {[%emt 0:00:14]} 32. Nh5 {[%emt 0:01:28]} e5 {[%emt 0:05:44]} 33. f4 {[%emt 0:01:11]} Qd7 {[%emt 0:03:35]} 34. Qc4 {[%emt 0:00:26]} Qb5 {[%emt 0:00:50]} 35. Kf2 {[%emt 0:01:49]} Qxc4 {[%emt 0:00:37]} 36. bxc4 {[%emt 0:00:01]} Rd3 {[%emt 0:00:41]} 37. fxe5 {[%emt 0:00:06]} a4 {[%emt 0:00:31]} 38. Nf4 {[%emt 0:00:13]} Rc3 {[%emt 0:00:23]} 39. Nd5 {[%emt 0:00:56]} Rxc4 {[%emt 0:00:35]} 40. Ne7+ {[%emt 0:00:00]} Kf7 {[%emt 0:00:00]} 41. Nxf5 {[%emt 0:00:24]} Rc2+ {[%emt 0:00:33]} 42. Ke1 {[%emt 0:00:11]} Bxg2 {[%emt 0:02:06]} 43. e6+ {[%emt 0:01:27]} Kf6 {[%emt 0:13:13]} 44. Kd1 {[%emt 0:08:06]} Ra2 {[%emt 0:02:44]} 45. Nd4 {[%emt 0:01:08]} h6 {[%emt 0:03:16]} 46. c6 {[%emt 0:02:05]} Bxc6 {[%emt 0:00:13]} 47. Nxc6 {[%emt 0:00:10]} Kxe6 {[%emt 0:00:24]} 48. Bf4 {[%emt 0:00:48]} g5 {[%emt 0:00:19]} 49. Bd2 {[%emt 0:00:51]} Ra3 {[%emt 0:01:04]} 50. h4 {[%emt 0:06:58]} gxh4 {[%emt 0:00:07]} 51. Bxh6 {[%emt 0:00:05]} h3 {[%emt 0:00:09]} 52. Bf4 {[%emt 0:00:27]} Ra2 {[%emt 0:04:20]} 53. Nd4+ {[%emt 0:00:19]} Kd5 {[%emt 0:00:30]} 54. Nc2 {[%emt 0:02:31]} Ke4 {[%emt 0:00:26]} 55. Bd6 {[%emt 0:00:59]} Rb2 {[%emt 0:00:46]} 56. Kc1 {[%emt 0:00:18]} Rb7 {[%emt 0:00:25]} 57. Bh2 {[%emt 0:04:04]} Rb6 {[%emt 0:02:53]} 58. Kd2 {[%emt 0:00:24]} Rb3 {[%emt 0:02:15]} 59. Na1 {[%emt 0:01:34]} Rf3 {[%emt 0:03:01]} 60. Ke2 {[%emt 0:01:57]} a3 {[%emt 0:00:51]} 0-1

[Event "Budapest Spring Festival 2019"]
[Site "Budapest"]
[Date "2019.04.14"]
[Round "6.39"]
[White "Bhambure, Shantanu"]
[Black "Popovics, Adam"]
[Result "1/2-1/2"]
[ECO "A40"]
[WhiteElo "2261"]
[BlackElo "2375"]
[Annotator "NA"]
[PlyCount "67"]
[EventDate "2019.04.09"]
[EventType "swiss"]
[EventCountry "HUN"]
[SourceTitle "playchess.com"]
[Source "ChessBase"]
[SourceQuality "1"]
[TimeControl "40/5400+30:1800+30"]

1. d4 {[%emt 0:00:02]} g6 {[%emt 0:00:05]} 2. c4 {[%emt 0:00:38]} Bg7 {[%emt 0:00:09]} 3. e4 {[%emt 0:00:11]} c5 {[%emt 0:00:10]} 4. d5 {[%emt 0:00:34]} d6 {[%emt 0:00:06]} 5. Nc3 {[%emt 0:00:43]} e6 {[%emt 0:00:05]} 6. h3 {[%emt 0:01:32]} Ne7 {[%emt 0:00:08]} 7. Nf3 {[%emt 0:01:02]} O-O {[%emt 0:01:00]} 8. Bd3 {[%emt 0:01:11]} exd5 {[%emt 0:01:49]} 9. exd5 {[%emt 0:01:42]} Nd7 {[%emt 0:06:12]} 10. O-O {[%emt 0:03:54]} Ne5 {[%emt 0:00:53]} 11. Nxe5 {[%emt 0:02:21]} Bxe5 {[%emt 0:00:06]} 12. Bg5 {[%emt 0:05:15]} f6 {[%emt 0:00:20]} 13. Bd2 {[%emt 0:04:00]} Bd7 {[%emt 0:03:44]} 14. f4 {[%emt 0:07:21]} Bd4+ {[%emt 0:00:05]} 15. Kh2 {[%emt 0:00:06]} f5 {[%emt 0:00:35]} 16. Ne2 {[%emt 0:05:06]} Bf6 {[%emt 0:00:49]} 17. Bc3 {[%emt 0:00:27]} a6 {[%emt 0:03:44]} 18. Bxf6 {[%emt 0:02:45]} Rxf6 {[%emt 0:00:06]} 19. Nc3 {[%emt 0:04:47]} Qf8 {[%emt 0:01:23]} 20. Re1 {[%emt 0:02:38]} Rf7 {[%emt 0:01:20]} 21. Qb3 {[%emt 0:05:56]} Ra7 {[%emt 0:04:20]} 22. Re3 {[%emt 0:07:40]} Qd8 {[%emt 0:00:15]} 23. Rae1 {[%emt 0:01:53]} Kf8 {[%emt 0:00:17]} 24. Nb1 {[%emt 0:07:40]} Ng8 {[%emt 0:01:23]} 25. Nd2 {[%emt 0:00:41]} Re7 {[%emt 0:05:51]} 26. Rxe7 {[%emt 0:00:53]} Nxe7 {[%emt 0:00:05]} 27. Nf3 {[%emt 0:05:06]} h6 {[%emt 0:01:00]} 28. Qc3 {[%emt 0:01:19]} Ng8 {[%emt 0:00:10]} 29. b4 {[%emt 0:02:20]} b6 {[%emt 0:00:15]} 30. bxc5 {[%emt 0:03:02]} bxc5 {[%emt 0:00:05]} 31. Rb1 {[%emt 0:01:36]} Bc8 {[%emt 0:02:59]} 32. Rb8 {[%emt 0:06:26]} Qc7 {[%emt 0:00:22]} 33. Qb2 {[%emt 0:02:55]} Rb7 {[%emt 0:00:19]} 34. Rxb7 {[%emt 0:00:29]} 1/2-1/2

[Event "Budapest Spring Festival 2019"]
[Site "Budapest"]
[Date "2019.04.14"]
[Round "6.40"]
[White "Abhilash, Reddy M.L."]
[Black "Parkhov, Yair"]
[Result "1/2-1/2"]
[ECO "D04"]
[WhiteElo "2252"]
[BlackElo "2352"]
[Annotator "NA"]
[PlyCount "30"]
[EventDate "2019.04.09"]
[EventType "swiss"]
[EventCountry "HUN"]
[SourceTitle "playchess.com"]
[Source "ChessBase"]
[SourceQuality "1"]
[TimeControl "40/5400+30:1800+30"]

1. d4 {[%emt 0:00:02]} d5 {[%emt 0:01:32]} 2. Nf3 {[%emt 0:00:15]} Nf6 {[%emt 0:00:25]} 3. e3 {[%emt 0:00:24]} c5 {[%emt 0:00:50]} 4. c4 {[%emt 0:00:19]} cxd4 {[%emt 0:01:35]} 5. exd4 {[%emt 0:00:15]} g6 {[%emt 0:00:09]} 6. Nc3 {[%emt 0:00:20]} Bg7 {[%emt 0:00:14]} 7. Be2 {[%emt 0:04:18]} O-O {[%emt 0:00:15]} 8. h3 {[%emt 0:00:38]} dxc4 {[%emt 0:06:45]} 9. Bxc4 {[%emt 0:00:21]} a6 {[%emt 0:00:14]} 10. a4 {[%emt 0:01:51]} Nc6 {[%emt 0:18:17]} 11. O-O {[%emt 0:00:47]} e6 {[%emt 0:08:22]} 12. Bg5 {[%emt 0:09:14]} h6 {[%emt 0:07:26]} 13. Bf4 {[%emt 0:03:31]} Nd5 {[%emt 0:04:29]} 14. Bxd5 {[%emt 0:03:30]} exd5 {[%emt 0:00:06]} 15. Qb3 {[%emt 0:00:25]} g5 1/2-1/2

[Event "Budapest Spring Festival 2019"]
[Site "Budapest"]
[Date "2019.04.15"]
[Round "7.5"]
[White "Borhy, Marcell"]
[Black "Gopal G.N."]
[Result "0-1"]
[ECO "D70"]
[WhiteElo "2237"]
[BlackElo "2589"]
[Annotator "ChessBase"]
[PlyCount "90"]
[EventDate "2019.04.09"]
[EventType "swiss"]
[EventCountry "HUN"]
[SourceTitle "playchess.com"]
[Source "ChessBase"]
[SourceQuality "1"]
[TimeControl "40/5400+30:1800+30"]

1. d4 {[%emt 0:01:55]} Nf6 {[%emt 0:00:04]} 2. c4 {[%emt 0:00:13]} g6 {[%emt 0:00:05]} 3. Nf3 {[%emt 0:00:11]} Bg7 {[%emt 0:00:06]} 4. g3 {[%emt 0:00:09]} d5 {[%emt 0:00:09]} 5. cxd5 {[%emt 0:00:11]} Nxd5 {[%emt 0:00:04]} 6. Bg2 {[%emt 0:00:12]} Nb6 {[%emt 0:00:28]} 7. Nc3 {[%emt 0:00:37]} Nc6 {[%emt 0:00:29]} 8. Bf4 {[%emt 0:00:09]} O-O {[%emt 0:04:08]} 9. O-O {[%emt 0:00:15]} Be6 {[%emt 0:16:02]} 10. Rc1 {[%emt 0:02:27]} Nd5 {[%emt 0:05:46]} 11. Nxd5 {[%emt 0:00:26]} Bxd5 {[%emt 0:00:10]} 12. Re1 {[%emt 0:00:27]} Nxd4 {[%emt 0:18:02]} 13. Bxc7 {[%emt 0:30:05]} Qd7 {[%emt 0:00:42]} 14. Ne5 {[%emt 0:11:14]} Bxe5 {[%emt 0:00:51]} 15. Bxe5 {[%emt 0:00:17]} Bxg2 {[%emt 0:00:18]} 16. Qxd4 {[%emt 0:01:02]} Qxd4 {[%emt 0:00:45]} 17. Bxd4 {[%emt 0:00:02]} Bc6 {[%emt 0:00:28]} 18. Red1 {[%emt 0:01:54]} f6 {[%emt 0:01:16]} 19. Bc5 {[%emt 0:06:00]} Kf7 {[%emt 0:00:33]} 20. Rd4 {[%emt 0:00:19]} Rfd8 {[%emt 0:04:29]} 21. Bxa7 {[%emt 0:03:18]} Rxd4 {[%emt 0:00:36]} 22. Bxd4 {[%emt 0:00:08]} Rxa2 {[%emt 0:00:04]} 23. f4 {[%emt 0:00:56]} Ra4 {[%emt 0:03:36]} 24. e3 {[%emt 0:05:36]} h6 {[%emt 0:07:43]} 25. Kf2 {[%emt 0:02:13]} g5 {[%emt 0:00:47]} 26. h3 {[%emt 0:03:26]} Kg6 {[%emt 0:05:41]} 27. Bc5 {[%emt 0:02:39]} Kf7 {[%emt 0:10:10]} 28. Bd4 {[%emt 0:00:56]} Ra5 {[%emt 0:03:15]} 29. Bc3 {[%emt 0:01:08]} Rd5 {[%emt 0:01:27]} 30. Re1 {[%emt 0:02:58]} Rd3 {[%emt 0:04:17]} 31. Re2 {[%emt 0:02:33]} Rd1 {[%emt 0:01:56]} 32. Re1 {[%emt 0:00:12]} Rd8 {[%emt 0:00:46]} 33. Bd4 {[%emt 0:05:58]} Kg6 {[%emt 0:02:20]} 34. Rc1 {[%emt 0:03:54]} h5 {[%emt 0:00:27]} 35. Rc5 {[%emt 0:00:47]} h4 {[%emt 0:03:16]} 36. f5+ {[%emt 0:04:10]} Kf7 {[%emt 0:00:02]} 37. b4 {[%emt 0:01:22]} Ra8 {[%emt 0:03:49]} 38. Ra5 {[%emt 0:00:21]} hxg3+ {[%emt 0:00:27]} 39. Kxg3 {[%emt 0:00:08]} Rh8 {[%emt 0:00:26]} 40. Rc5 {[%emt 0:00:00]} Be4 {[%emt 0:00:00]} 41. Bc3 {[%emt 0:06:37]} b6 {[%emt 0:05:39]} 42. Rb5 {[%emt 0:00:10]} Rc8 {[%emt 0:05:44]} 43. Be1 {[%emt 0:02:23]} Rb8 {[%emt 0:02:09]} 44. Kg4 {[%emt 0:01:41]} Bc6 {[%emt 0:00:26]} 45. Bg3 {[%emt 0:00:07]} Rb7 {[%emt 0:00:22]} 0-1

[Event "Budapest Spring Festival 2019"]
[Site "Budapest"]
[Date "2019.04.15"]
[Round "7.6"]
[White "Stupak, Kirill"]
[Black "Shyam, Sundar M."]
[Result "1/2-1/2"]
[ECO "E81"]
[WhiteElo "2547"]
[BlackElo "2519"]
[Annotator "ChessBase"]
[PlyCount "23"]
[EventDate "2019.04.09"]
[EventType "swiss"]
[EventCountry "HUN"]
[SourceTitle "playchess.com"]
[Source "ChessBase"]
[SourceQuality "1"]
[TimeControl "40/5400+30:1800+30"]

1. d4 {[%emt 0:04:05]} Nf6 {[%emt 0:00:09]} 2. c4 {[%emt 0:00:13]} g6 {[%emt 0:00:20]} 3. Nc3 {[%emt 0:01:27]} Bg7 {[%emt 0:00:11]} 4. e4 {[%emt 0:00:04]} d6 {[%emt 0:00:07]} 5. f3 {[%emt 0:00:04]} O-O {[%emt 0:00:12]} 6. Nge2 {[%emt 0:00:20]} c5 {[%emt 0:00:16]} 7. d5 {[%emt 0:00:44]} e6 {[%emt 0:00:07]} 8. Ng3 {[%emt 0:00:04]} exd5 {[%emt 0:00:04]} 9. cxd5 {[%emt 0:00:03]} a6 {[%emt 0:00:05]} 10. a4 {[%emt 0:00:02]} Nbd7 {[%emt 0:00:03]} 11. Be2 {[%emt 0:00:49]} Ne8 {[%emt 0:00:05]} 12. O-O {[%emt 0:13:25]} 1/2-1/2

[Event "Budapest Spring Festival 2019"]
[Site "Budapest"]
[Date "2019.04.15"]
[Round "7.10"]
[White "Nguyen, Piotr"]
[Black "Santos Latasa, Jaime"]
[Result "0-1"]
[ECO "A02"]
[WhiteElo "2427"]
[BlackElo "2585"]
[Annotator "ChessBase"]
[PlyCount "48"]
[EventDate "2019.04.09"]
[EventType "swiss"]
[EventCountry "HUN"]
[SourceTitle "playchess.com"]
[Source "ChessBase"]
[SourceQuality "1"]
[TimeControl "40/5400+30:1800+30"]

1. f4 {[%emt 0:00:03]} b6 {[%emt 0:00:25]} 2. e4 {[%emt 0:00:37]} Bb7 {[%emt 0:00:07]} 3. Nc3 {[%emt 0:01:33]} e6 {[%emt 0:00:14]} 4. Nf3 {[%emt 0:01:10]} d5 {[%emt 0:00:57]} 5. Bb5+ {[%emt 0:06:09]} c6 {[%emt 0:00:34]} 6. Bd3 {[%emt 0:02:40]} Nd7 {[%emt 0:00:59]} 7. exd5 {[%emt 0:03:29]} cxd5 {[%emt 0:06:36]} 8. Qe2 {[%emt 0:17:05]} a6 {[%emt 0:10:02]} 9. f5 {[%emt 0:04:56]} Qe7 {[%emt 0:00:47]} 10. fxe6 {[%emt 0:03:05]} fxe6 {[%emt 0:00:08]} 11. Ne5 {[%emt 0:15:36]} Nxe5 {[%emt 0:06:20]} 12. Qxe5 {[%emt 0:00:03]} Nf6 {[%emt 0:00:12]} 13. Na4 {[%emt 0:08:45]} b5 {[%emt 0:03:35]} 14. Nb6 {[%emt 0:00:20]} Rd8 {[%emt 0:00:59]} 15. a4 {[%emt 0:00:25]} b4 {[%emt 0:06:05]} 16. a5 {[%emt 0:01:00]} g6 {[%emt 0:02:51]} 17. c3 {[%emt 0:14:26]} Bg7 {[%emt 0:01:28]} 18. Qd4 {[%emt 0:00:26]} O-O {[%emt 0:02:40]} 19. Qxb4 {[%emt 0:00:20]} Qc7 {[%emt 0:00:07]} 20. O-O {[%emt 0:11:59]} Ne4 {[%emt 0:05:22]} 21. b3 {[%emt 0:03:47]} Be5 {[%emt 0:00:49]} 22. Ba3 {[%emt 0:02:32]} Bxh2+ {[%emt 0:00:10]} 23. Kh1 {[%emt 0:00:05]} Ng3+ {[%emt 0:00:12]} 24. Kxh2 {[%emt 0:00:07]} Nxf1+ {[%emt 0:00:05]} 0-1

[Event "Budapest Spring Festival 2019"]
[Site "Budapest"]
[Date "2019.04.15"]
[Round "7.16"]
[White "Henderson de La Fuente, Lance"]
[Black "Risting, Eivind Olav"]
[Result "1-0"]
[ECO "B12"]
[WhiteElo "2471"]
[BlackElo "2345"]
[Annotator "ChessBase"]
[PlyCount "49"]
[EventDate "2019.04.09"]
[EventType "swiss"]
[EventCountry "HUN"]
[SourceTitle "playchess.com"]
[Source "ChessBase"]
[SourceQuality "1"]
[TimeControl "40/5400+30:1800+30"]

1. e4 {[%emt 0:00:06]} c6 {[%emt 0:00:13]} 2. d4 {[%emt 0:00:23]} d5 {[%emt 0:00:07]} 3. e5 {[%emt 0:00:12]} Bf5 {[%emt 0:00:19]} 4. Nd2 {[%emt 0:00:19]} e6 {[%emt 0:00:22]} 5. Nb3 {[%emt 0:00:16]} Nd7 {[%emt 0:00:59]} 6. Nf3 {[%emt 0:00:19]} Ne7 {[%emt 0:00:41]} 7. Be2 {[%emt 0:00:29]} h6 {[%emt 0:00:11]} 8. O-O {[%emt 0:00:37]} g5 {[%emt 0:00:45]} 9. Ne1 {[%emt 0:00:56]} Qc7 {[%emt 0:00:57]} 10. Nd3 {[%emt 0:02:50]} Ng6 {[%emt 0:01:30]} 11. Be3 {[%emt 0:03:37]} Bg7 {[%emt 0:19:11]} 12. Bh5 {[%emt 0:13:35]} O-O {[%emt 0:10:42]} 13. f4 {[%emt 0:11:49]} Bxd3 {[%emt 0:11:16]} 14. Qxd3 {[%emt 0:05:41]} Nxf4 {[%emt 0:08:36]} 15. Bxf4 {[%emt 0:00:29]} gxf4 {[%emt 0:00:05]} 16. Rxf4 {[%emt 0:00:26]} f6 {[%emt 0:16:21]} 17. Raf1 {[%emt 0:03:43]} fxe5 {[%emt 0:02:51]} 18. Rf7 {[%emt 0:00:26]} Rxf7 {[%emt 0:02:37]} 19. Rxf7 {[%emt 0:00:24]} e4 {[%emt 0:06:27]} 20. Qh3 {[%emt 0:00:51]} Rf8 {[%emt 0:00:58]} 21. Qxe6 {[%emt 0:00:16]} Rxf7 {[%emt 0:00:22]} 22. Qxf7+ {[%emt 0:00:06]} Kh8 23. Bg4 {[%emt 0:00:24]} Qb6 {[%emt 0:06:04]} 24. Bxd7 {[%emt 0:00:43]} Bxd4+ {[%emt 0:00:07]} 25. Kh1 {[%emt 0:00:07]} 1-0